Cogmind - Beta 15 *** ADVENTURER MODE // 2025.07.19 @ 11:35:52 Player: Ninjafish69 Result: Destroyed by as-50565 with Assembled Heavy Rifle Performance ------------- Evolutions (0) 0 Regions Visited (0) 0 Robots Destroyed (1) 5 Value Destroyed (53) 53 Prototype IDs (0) 0 Alien Tech Used (0) 0 Bonus (0) 0 TOTAL SCORE: 58 Bonus ------- None Cogmind --------- Core Integrity 0/250 Matter 247/300 Energy 100/100 System Corruption 0% Temperature Cool (0) Movement Walking (120) Location -11/Scrapyard Parts ------- > --- POWER (1) -------- (None) > --- PROPULSION (2) --- Aluminum Leg > --- UTILITY (2) ------ Small Storage Unit > --- WEAPON (2) ------- (None) > --- INVENTORY (8) ---- (None) Peak State ------------ > --- POWER ------------ Ion Engine > --- PROPULSION ------- Light Treads Light Treads > --- UTILITY ---------- Small Storage Unit > --- WEAPON ----------- EM Pulse Gun Light Assault Rifle > --- INVENTORY -------- Light Ion Engine Aluminum Leg Aluminum Leg [Rating: 6] Favorites ----------- Power Ion Engine Engine Ion Engine Propulsion Light Treads Treads Light Treads Leg Aluminum Leg Utility Small Storage Unit Storage Small Storage Unit Weapon Light Assault Rifle Energy Gun EM Pulse Gun Ballistic Gun Light Assault Rifle Build | -11 ------- Run | Yrd Slots Evolved . | . Power . | . Propulsion . | . Utility . | . Weapon . | . Parts Attached 9 | 9 Power 2 | 2 Engine 2 | 2 Core . | . Reactor . | . Propulsion 4 | 4 Treads 2 | 2 Leg 2 | 2 Wheel . | . Hover . | . Flight . | . Utility 1 | 1 Device . | . Storage 1 | 1 Processor . | . Hackware . | . Protection . | . Artifact . | . Weapon 2 | 2 Energy Gun 1 | 1 Energy Cannon . | . Ballistic Gun 1 | 1 Ballistic Cannon . | . Launcher . | . Special Weapon . | . Impact Weapon . | . Slashing Weapon . | . Piercing Weapon . | . Special Melee Weapon . | . Unidentified Prototypes . | . Parts Lost 7 | 7 Power 2 | 2 Propulsion 3 | 3 Utility . | . Weapon 2 | 2 Highest Loss Streak 7 | 7 To Critical Strikes . | . Average Backups 2 | 2 Power . | . Propulsion 1 | 1 Utility . | . Weapon . | . Tool/Special . | . Unused Backups . | . Power . | . Propulsion . | . Utility . | . Weapon . | . Tool/Special . | . Average Slot Usage (%) . | . Peak Build Rating 6 | 6 Average Rating 5 | 5 On Entrance . | . Naked Turns . | . Heaviest Build 13 | 13 Greatest Support 40 | 40 Greatest Overweight (x) 1 | 1 Average Overweight (x) . | . Largest Inventory Capacity 8 | 8 Average Capacity 7 | 7 Most Carried 5 | 5 Average Carried 2 | 2 Final Capacity 8 | 8 Final Carried . | . Class Distribution -------------------- None Dominant Class ---------------- None Resources | -11 ----------- Run | Yrd Matter Collected 213 | 213 Remotely . | . Salvage Created . | . Parts . | . Haulers Intercepted . | . Recyclers Shooed . | . Parts Field Recycled . | . Retrieved Matter . | . Parts Self-Destructed . | . Prevented . | . Kills | -11 ------- Run | Yrd Combat Hostiles Destroyed 1 | 1 Guns 1 | 1 Classes Destroyed 1 | 1 Demolisher 1 | 1 Best Kill Streak 1 | 1 Combat Bots Only 1 | 1 Max Kills in Single Turn 1 | 1 Gunslinging . | . Exploded . | . Melee . | . Uniques/NPCs Destroyed . | . Combat | -11 -------- Run | Yrd Hostile Shots Fired 50 | 50 Missed 13 | 13 Hits 37 | 37 Melee 4 | 4 Projectile 33 | 33 AOE 23 | 23 Damage Taken 907 | 907 Core 252 | 252 Absorbed by Shields . | . Ignored by Resistances 246 | 246 Core Remaining (%) . | . Volleys Fired 13 | 13 Largest 2 | 2 Hottest 60 | 60 Shots Fired 15 | 15 Gun 15 | 15 Cannon . | . Launcher . | . Special . | . Kinetic 13 | 13 Thermal . | . Explosive . | . Electromagnetic 2 | 2 Robot Hit Streak 9 | 9 Robot Miss Streak 1 | 1 Penetration Max . | . Secondary Targets . | . Shots Hit Robots 13 | 13 Core Hits 7 | 7 Critical Kills . | . Critical Parts Destroyed . | . Critical Strikes . | . Melee Attacks . | . Impact . | . Slashing . | . Piercing . | . Sneak Attacks . | . Combat Hostiles . | . Follow-up Attacks . | . Damage Inflicted 115 | 115 Guns 112 | 112 Cannons . | . Explosions . | . Melee . | . Ramming 3 | 3 Kinetic 92 | 92 Thermal . | . Explosive . | . Electromagnetic 20 | 20 Impact . | . Slashing . | . Piercing . | . Highest Corruption . | . Average Corruption . | . Corruption Purged . | . Corruption Blocked . | . Overload Shots . | . Overflow Damage . | . Projectiles . | . Explosions . | . Melee . | . Knockbacks . | . Impact . | . Kinetic . | . Secondary . | . Self-Inflicted Damage . | . Shots . | . Rammed . | . Targets Rammed 1 | 1 Kicked 1 | 1 Crushed . | . Highest Temperature 20 | 20 Average Temperature 15 | 15 Received Heat Transfer 20 | 20 Siege Activations . | . Martial Activations . | . Shielding Activations . | . Robots Disrupted . | . Combat Hostiles . | . Robots Corrupted . | . Combat Hostiles . | . Parts Fried . | . Impact Corruptions . | . Robots Melted . | . Combat Hostiles . | . Parts Melted . | . Heat Transferred . | . Parts Sabotaged . | . Parts Stolen . | . Parts Stripped . | . Power Chain Reactions . | . Alert | -11 ------- Run | Yrd Maximum Alert Level . | . Low Security (%) 100 | 100 Level 1 . | . Level 2 . | . Level 3 . | . Level 4 . | . Level 5 . | . High Security . | . Max Security . | . Peak Influence 20 | 20 Initial . | . Average . | . Influence Increases 20 | 20 Destroy 0b10 Robot/C 20 | 20 Influence Decreases 20 | 20 Time Decay 10 | 10 Lost Part 10 | 10 Squads Dispatched . | . Investigation . | . Extermination . | . Reinforcement . | . Assault . | . Garrison . | . Intercept . | . Searches Triggered . | . Construction Impeded . | . Haulers Reinforced . | . Active Scanning Responses . | . Cargo Convoy Interrupts . | . Stealth | -11 --------- Run | Yrd Distress Signals . | . Communications Jammed . | . Distress Signals . | . Times Spotted 16 | 16 Peak Tracking Total 15 | 15 Tactical Retreats . | . Traps | -11 ------- Run | Yrd Traps Triggered . | . Indirectly . | . Trap Hack Attempts . | . Triggered . | . Disarmed . | . Reprogrammed . | . Reused . | . Traps Extracted . | . Installed . | . Triggered . | . Machines | -11 ---------- Run | Yrd Machines Disabled . | . Max in Single Turn . | . Machines Repaired . | . Machines Dismantled . | . Machines Sabotaged . | . Overloaded Fab Kills . | . Hacking | -11 --------- Run | Yrd Machines Accessed . | . Terminals . | . Fabricators . | . Repair Stations . | . Recycling Units . | . Scanalyzers . | . Garrison Access . | . Total Hacks . | . Successful . | . Failed . | . Catastrophic . | . Database Lockouts . | . Manual . | . Terminals . | . Fabricators . | . Repair Stations . | . Recycling Units . | . Scanalyzers . | . Garrison Access . | . Terminal Hacks . | . Fabricator Hacks . | . Repair Station Hacks . | . Recycling Unit Hacks . | . Scanalyzer . | . Garrison Access Hacks . | . Unauthorized Hacks . | . Terminals . | . Fabricators . | . Repair Stations . | . Recycling Units . | . Scanalyzers . | . Garrison Access . | . Data Cores Recovered . | . Used . | . Hacking Detections . | . Full Trace Events . | . Feedback Events . | . Feedback Blocked . | . Robot Schematics Acquired . | . Robots Built . | . Authchips . | . Time . | . Total Robot Build Rating . | . Part Schematics Acquired . | . Parts Built . | . Authchips . | . Time . | . Total Part Build Rating . | . Parts Repaired . | . Time . | . Parts Recycled . | . Recycled Matter . | . Retrieved Matter . | . Retrieved Components . | . Parts Scanalyzed . | . Part Schematics Acquired . | . Parts Damaged . | . Bothacking | -11 ------------ Run | Yrd Used RIF Installer . | . Robots Hacked . | . Non-combat . | . Combat . | . Robot Hacks Applied . | . Relay Couplers Released . | . Fabnet Peak Effective % . | . Robots Rewired . | . Allies Hacked . | . Hacks Repelled . | . Allies | -11 -------- Run | Yrd Total Allies . | . Largest Group . | . Highest-Rated Group . | . Highest-Rated Ally . | . Total Orders . | . Ally Attacks . | . Total Damage . | . Kills . | . Allies Corrupted . | . Allies Melted . | . Intel | -11 ------- Run | Yrd Active Infowar (turns) . | . Robot Analysis Total . | . Derelict Logs Recovered . | . Drone Launches . | . Drone Recoveries . | . Exploration | -11 ------------- Run | Yrd Turns Passed 1088 | 1088 Spaces Moved 84 | 84 Core 27 | 27 Treads 46 | 46 Legs 11 | 11 Wheels . | . Hover . | . Flight . | . Fastest Speed 50 | 50 Average Speed 124 | 124 Slowest Speed 160 | 160 Overloaded Moves . | . Propulsion Burnouts . | . Robots Hopped . | . Potential Cave-ins . | . Cave-ins Triggered . | . Exploration Rate (%) 16 | 16 Regions Visited . Branch Regions . Pre-discovered Areas . | . Known Exits Taken . | . Unknown Exits Taken . | . Scrap Searched . | . Spaces Dug . | . Terrain Destroyed . | . Melee . | . Projectile . | . AOE . | . Terrain Rammed . | . Walls Destroyed . | . Machines Disabled . | . Actions | -11 --------- Run | Yrd Total 1054 | 1054 Wait 939 | 939 Move 84 | 84 Hop . | . Pick Up 8 | 8 Fast Attach 1 | 1 Attach 8 | 8 Detach . | . Swap . | . Drop . | . Fire 13 | 13 Melee . | . Ram . | . Kick 1 | 1 Crush . | . Escape Stasis . | . Rewire . | . Trap . | . Miscellaneous . | . Route ------- -11/Scrapyard (discovered 1 exit: [*Mat]) History --------- Turn | Location | Event 3 | -11/Scrapyard | Discovered new exit (range 15) 1017 | -11/Scrapyard | Assembled infested the area 1042 | -11/Scrapyard | Core integrity fell below 50% 1088 | -11/Scrapyard | Core integrity fell below 20% 1089 | -11/Scrapyard | Destroyed by as-50565 with Assembled Heavy Rifle Last Messages --------------- as-07418 destroyed. as-45840 destroyed. K-01 Serf collects debris. Kicked D-53 Grenadier out of the way. D-53 Grenadier suffers critical hit (Destroy). The unstable cave ceiling collapses. D-53 Grenadier destroyed. The unstable cave ceiling collapses. Knocked back. The unstable cave ceiling collapses. T-07 Excavator is excavating. The unstable cave ceiling collapses. R-06 Scavenger system corrupted by crushing effect. R-06 Scavenger knocked back. R-06 Scavenger system terminally corrupted. The unstable cave ceiling collapses. Aluminum Leg destroyed. Lgt. Ion Engine destroyed. T-07 Excavator is excavating. Map ----- +----------------------------------------------------+ | ?????????????????????????=!??????????????????????? | | ????????????????????????? ??????????????????????? | | ????????????????????????? ??????????????????????? | | ????????????????????????# ??????????????????????? | | ????????????????????????# ??????????????????????? | | ????????????????????????# #?????????????????????? | | ????????????????????????# #?????????????????????? | | ??????????????########### #?????????????????????? | | ??????????????# # #?????????????????????? | | ??????????????# # #?????????????????????? | | ??????????????# #?????????????????????? | | ??????????????# # #????????? ??????????? | | ??????????????? ##??????? #?????????? | | ??????????????# ? a ##???#? #?????????? | | ??????????????# %a #?? # ??????????? | | ?????????????????? % ##? ?????????????? | | ????????????????####### % ## #???????????????? | | ?????????????# a #???????????????? | | ?????????????# # * #???????????????? | | ?????????????# ?## a ## #???????????????? | | ?????????????# ???# aa #? #???????????????? | | ?????????????# ????# #??????????????????? | | ???????????###### ##### #??????????????????? | | ?????????#t a #??????????????????? | | ??????????# a a #??????????????????? | | ????????????######### a a@ #??????????????????? | | ??????????????????## #??????????????????? | | ?????????????????## %=# #??????????????????? | | ???????????????### # #### #??????????????????? | | ???????????????# # ## # ##??????????????????? | | ????##########?# ##???????????????????? | | ????# #?# ##????????????????????? | | ????# #?## #####?????????????????? | | ????# ##### #???????????????? | | ????# ????????????? | | ????# = [ ##### # ????????????? | | ????# ##### <%#??????#???????????????? | | ????# = #???# " #??????????????????????? | | ????# #???##########??????????????????????? | | ????#### ####???????????????????????????????????? | | ???????###???????????????????????????????????????? | | ?????????????????????????????????????????????????? | | ?????????????????????????????????????????????????? | | ?????????????????????????????????????????????????? | | ?????????????????????????????????????????????????? | | ?????????????????????????????????????????????????? | | ?????????????????????????????????????????????????? | | ?????????????????????????????????????????????????? | | ?????????????????????????????????????????????????? | | ?????????????????????????????????????????????????? | +----------------------------------------------------+ Best States ------------- Heat Dissipation 25 Energy Generation 10 Energy Capacity 250 Matter Stores 237 Matter Capacity 300 Sight Range 16 Terrain Scan Density 10 Resistance: KI 20 Resistance: TH 20 Resistance: EX 20 Resistance: EM 20 Resistance: I 20 Resistance: S 20 Resistance: P 20 Evasion (%) 50 Recoil Reduction 2 Offensive Hacking 10 Item Schematics ----------------- None Robot Schematics ------------------ None Fabricated ------------ Nothing Repaired ---------- Nothing Alien Tech Used ----------------- None Achievements -------------- Curiosity Killed The Cat Challenges ------------ None Game ------ Seed ServoCompositeCloak Manual? 0 Play Time 00:04:52 Cumulative 0.7 hours Start 2025.07.19 @ 11:33:25 End 2025.07.19 @ 11:35:52 Sessions 0 Manual Loads 0 Difficulty Adventurer Special Mode None Game No. 2 Rogue 0 Adventurer 2 Explorer 0 Win Type - Total 0 Types 0/0/0/0/0/0/0/0/0/0 Lore% 0 Gallery% 3 Achievement% 2 Wizard Run 0 Options --------- Layout 1 ASCII 0 Keyboard 0 Movement Mouse Keybinds 0 Fullscreen 1 Font 24/Proggy Map View 50x35 Zoom Use 0% Tactical HUD 0 Map Filters NONE Filters NONE Steam 1 RUN: 7dc536c6-3dbb-441a-a25d-4b90e852095e